Cogmind - Beta 9.6 @@@ ROGUE MODE // 2020.04.14 @ 18:59:28 // Winter2019/RPGLIKE Player: IAMCRAIG Result: Destroyed by Y-45 Defender with Beam Rifle Performance ------------- Evolutions (1) 500 Regions Visited (3) 600 Robots Destroyed (51) 255 Value Destroyed (1064) 1064 Prototype IDs (4) 80 Alien Tech Used (0) 0 Bonus (-231) -231 TOTAL SCORE: 2268 Bonus ------- Friendly Fire -231 Cogmind --------- Core Integrity 0/950 Matter 300/300 Energy 265/265 System Corruption 0% Temperature Cool (9) Movement Hovering (76) Location -9/Materials Parts ------- > --- POWER (1) -------- Improved Ion Engine > --- PROPULSION (2) --- Combat Airjet Combat Airjet > --- UTILITY (6) ------ Cooling System Improved Signal Interpreter Improved Terrain Scanner Improved Targeting Computer Medium Armor Plating Hacking Suite > --- WEAPON (3) ------- Beam Cannon Heavy Hammer Heavy Hammer > --- INVENTORY (2) ---- Cooling System Improved Targeting Computer Peak State ------------ > --- POWER ------------ Light Nuclear Core > --- PROPULSION ------- Combat Airjet Combat Airjet > --- UTILITY ---------- Cooling System Improved Signal Interpreter Improved Terrain Scanner Launcher Guidance Computer Hacking Suite > --- WEAPON ----------- Mini Grenade Launcher Heavy Hammer Heavy Hammer > --- INVENTORY -------- Cooling System High-capacity Matter Pod [Rating: 32] Favorites ----------- Power Light Nuclear Core Engine Ion Engine Power Core Light Nuclear Core Propulsion Combat Airjet Treads Light Treads Wheel Wheel Hover Unit Combat Airjet Utility Improved Signal Interpreter Device Cooling System Processor Improved Signal Interpreter Hackware Hacking Suite Protection Medium Armor Plating Weapon EM Pulse Gun Energy Gun EM Pulse Gun Energy Cannon Light EM Pulse Cannon Launcher Mini Grenade Launcher Impact Weapon Heavy Hammer Build | -11 -10 -10 -9 ------- Run | Scr Mat Min Mat Slots Evolved 8 | 2 3 1 2 Power . | . . . . Propulsion 1 | 1 . . . Utility 5 | 1 2 1 1 Weapon 2 | . 1 . 1 Parts Attached 33 | 5 13 8 7 Power 4 | 1 1 . 2 Engine 3 | 1 . . 2 Core 1 | . 1 . . Reactor . | . . . . Propulsion 5 | 3 . 2 . Treads 1 | 1 . . . Leg . | . . . . Wheel 2 | 2 . . . Hover 2 | . . 2 . Flight . | . . . . Utility 14 | . 8 4 2 Device 8 | . 5 3 . Storage . | . . . . Processor 4 | . 2 1 1 Hackware 1 | . 1 . . Protection 1 | . . . 1 Artifact . | . . . . Weapon 10 | 1 4 2 3 Energy Gun 3 | 1 2 . . Energy Cannon 4 | . 2 1 1 Ballistic Gun . | . . . . Ballistic Cannon . | . . . . Launcher 1 | . . 1 . Special Weapon . | . . . . Impact Weapon 2 | . . . 2 Slashing Weapon . | . . . . Piercing Weapon . | . . . . Special Melee Weapon . | . . . . Unidentified Prototypes . | . . . . Parts Lost 2 | . . 1 1 Power 1 | . . . 1 Propulsion . | . . . . Utility 1 | . . 1 . Weapon . | . . . . Highest Loss Streak 1 | . . 1 1 Average Slot Usage (%) 96 | . 96 94 99 Engine 1 | . . . 6 Core 9 | . 12 10 2 Treads 7 | . 13 4 . Wheel 7 | . 13 4 . Hover 7 | . . 11 17 Device 17 | . 19 13 17 Processor 15 | . 9 20 17 Hackware 6 | . 3 10 8 Energy Gun 7 | . 16 . . Energy Cannon 8 | . 3 14 6 Launcher 2 | . . 5 3 Impact Weapon 2 | . . . 15 Naked Turns . | . . . . Heaviest Build 26 | 7 15 16 26 Greatest Support 49 | 16 25 49 49 Greatest Overweight (x) . | . . . . Average Overweight (x) . | . . . . Largest Inventory Capacity 2 | . 1 2 2 Average Capacity 1 | . . 1 2 Most Carried 2 | . 1 2 2 Average Carried 1 | . . 1 1 Final Capacity 2 | . 1 2 2 Final Carried 2 | . 1 2 2 Class Distribution -------------------- 56% | Mutant 39% | Scavenger-Mutant 3% | Commander-Mutant Dominant Class ---------------- Mutant | -10/Materials Scavenger-Mutant | -10/Mines Scavenger-Mutant | -9/Materials Resources | -11 -10 -10 -9 ----------- Run | Scr Mat Min Mat Matter Collected 605 | 194 186 155 70 Remotely . | . . . . Salvage Created 1564 | . 769 279 516 Parts 74 | . 42 12 20 Haulers Intercepted 5 | . 2 . 3 Recyclers Shooed . | . . . . Parts Field Recycled . | . . . . Retrieved Matter . | . . . . Parts Self-Destructed . | . . . . Prevented . | . . . . Kills | -11 -10 -10 -9 ------- Run | Scr Mat Min Mat Combat Hostiles Destroyed 29 | . 11 12 6 Melee 2 | . . . 2 Guns 11 | . 11 . . Cannons 6 | . . 5 1 AOE 7 | . . 7 . Classes Destroyed 11 | . 6 3 2 Worker 4 | . 4 . . Builder 2 | . 1 1 . Hauler 5 | . 2 . 3 Recycler 4 | . . 1 3 Operator 2 | . 2 . . Watcher 4 | . 3 . 1 Swarmer 4 | . . . 4 Grunt 14 | . 11 3 . Sentry 2 | . . . 2 Demolisher 2 | . . 2 . Assembled 8 | . . 8 . Best Kill Streak 7 | . 7 3 4 Combat Bots Only 3 | . 3 3 3 Max Kills in Single Turn 2 | . 2 2 1 Gunslinging . | . . . . Exploded 2 | . . 2 . Melee 1 | . . . 1 Uniques/NPCs Destroyed . | . . . . Combat | -11 -10 -10 -9 -------- Run | Scr Mat Min Mat Damage Taken 2685 | . 489 1316 880 Core 2167 | . 402 1088 677 Absorbed by Shields . | . . . . Redirected to Core 1618 | . 289 817 512 Core Remaining (%) 66 | 100 . 33 . Volleys Fired 136 | . 98 31 7 Largest 2 | . 2 2 1 Hottest 112 | . 112 112 60 Shots Fired 206 | . 155 44 7 Gun 143 | . 143 . . Cannon 55 | . 12 36 7 Launcher 8 | . . 8 . Special . | . . . . Kinetic . | . . . . Thermal 13 | . . 6 7 Explosive 8 | . . 8 . Electromagnetic 185 | . 155 30 . Robot Hit Streak 15 | . 15 5 4 Robot Miss Streak 4 | . 3 4 2 Penetration Max . | . . . . Secondary Targets 1 | . 1 . . Max Gunslinging Chain 1 | . 1 . . Shots Hit Robots 127 | . 68 22 37 Core Hits 61 | . 29 24 8 Critical Hits 1 | . . . 1 Critical Kills . | . . . . Critical Parts Destroyed 1 | . . . 1 Melee Attacks 51 | . . . 51 Impact 51 | . . . 51 Slashing . | . . . . Piercing . | . . . . Sneak Attacks 5 | . . . 5 Combat Hostiles . | . . . . Follow-up Attacks 4 | . . . 4 Damage Inflicted 3321 | . 1321 971 1029 Guns 1040 | . 1040 . . Cannons 608 | . 100 422 86 Explosions 728 | . 179 549 . Melee 943 | . . . 943 Ramming 2 | . 2 . . Kinetic . | . . . . Thermal 490 | . 179 225 86 Explosive 376 | . . 376 . Electromagnetic 1510 | . 1140 370 . Impact 943 | . . . 943 Slashing . | . . . . Piercing . | . . . . Highest Corruption 2 | . . 2 . Average Corruption 2 | . . 2 . Corruption Purged . | . . . . Effects 3 | . . 3 . Message Errors 1 | . . 1 . Heat Flow Errors 1 | . . 1 . Energy Discharges 1 | . . 1 . Overload Shots . | . . . . Overflow Damage 212 | . 32 7 173 Projectiles 26 | . 26 . . Explosions 13 | . 6 7 . Melee 173 | . . . 173 Knockbacks 7 | . . . 7 Impact 6 | . . . 6 Kinetic . | . . . . Secondary 1 | . . . 1 Self-Inflicted Damage 29 | . . 29 . Shots 1 | . . 1 . Rammed 1 | . 1 . . Targets Rammed 1 | . 1 . . Kicked . | . . . . Crushed . | . . . . Highest Temperature 240 | . 84 240 1 Average Temperature 46 | . 34 63 1 Received Heat Transfer 477 | . 273 42 162 Siege Activations . | . . . . Robots Corrupted 1 | . 1 . . Combat Hostiles . | . . . . Parts Fried 16 | . 7 . 9 Impact Corruptions 11 | . . . 11 Robots Melted . | . . . . Combat Hostiles . | . . . . Parts Melted . | . . . . Heat Transferred 746 | . 300 261 185 Parts Sabotaged . | . . . . Parts Stolen . | . . . . Parts Stripped . | . . . . Power Chain Reactions 6 | . 4 2 . Missiles Intercepted . | . . . . Alert | -11 -10 -10 -9 ------- Run | Scr Mat Min Mat Peak Influence 445 | . 445 288 303 Average Influence 170 | . 216 140 129 Maximum Alert Level 2 | . 2 1 1 Low Security (%) 61 | 100 52 63 75 Level 1 31 | . 32 36 24 Level 2 6 | . 15 . . Level 3 . | . . . . Level 4 . | . . . . Level 5 . | . . . . High Security . | . . . . Max Security . | . . . . Squads Dispatched 3 | . 3 . . Investigation 1 | . 1 . . Extermination . | . . . . Reinforcement 2 | . 2 . . Assault . | . . . . Garrison . | . . . . Intercept . | . . . . Construction Impeded . | . . . . Haulers Reinforced . | . . . . Stealth | -11 -10 -10 -9 --------- Run | Scr Mat Min Mat Distress Signals 2 | . 1 1 . Communications Jammed . | . . . . Distress Signals . | . . . . Times Spotted 52 | . 23 20 9 Peak Tracking Total 7 | . 3 7 4 Tactical Retreats 1 | . . . 1 Traps | -11 -10 -10 -9 ------- Run | Scr Mat Min Mat Traps Triggered 1 | . 1 . . Indirectly . | . . . . Trap Hack Attempts . | . . . . Triggered . | . . . . Disarmed . | . . . . Reprogrammed . | . . . . Reused . | . . . . Traps Extracted . | . . . . Installed . | . . . . Triggered . | . . . . Machines | -11 -10 -10 -9 ---------- Run | Scr Mat Min Mat Machines Disabled 19 | . 15 2 2 Max in Single Turn 1 | . 1 1 1 Machines Sabotaged . | . . . . Garrisons Compromised . | . . . . Overloaded Fab Kills . | . . . . Fab Network Shutdowns . | . . . . Hacking | -11 -10 -10 -9 --------- Run | Scr Mat Min Mat Machines Accessed 9 | . 7 . 2 Terminals 8 | . 6 . 2 Fabricators . | . . . . Repair Stations . | . . . . Recycling Units 1 | . 1 . . Scanalyzers . | . . . . Garrison Access . | . . . . Total Hacks 48 | . 42 . 6 Successful 34 | . 30 . 4 Failed 14 | . 12 . 2 Catastrophic . | . . . . Database Lockouts . | . . . . Manual 25 | . 22 . 3 Terminals 46 | . 40 . 6 Fabricators . | . . . . Repair Stations . | . . . . Recycling Units 2 | . 2 . . Scanalyzers . | . . . . Garrison Access . | . . . . Terminal Hacks 18 | . 16 . 2 Record 2 | . 2 . . Robot Analysis 3 | . 3 . . Prototype ID Bank 2 | . 1 . 1 Branch Access Points 1 | . 1 . . Terminal Index 1 | . 1 . . Scanalyzer Index 1 | . 1 . . Locate Traps 2 | . 1 . 1 Hauler Manifests 2 | . 2 . . Registered Components 1 | . 1 . . Zone Layout 3 | . 3 . . Fabricator Hacks . | . . . . Repair Station Hacks . | . . . . Recycling Unit Hacks 2 | . 2 . . Report Inventory 1 | . 1 . . Retrieve Components 1 | . 1 . . Scanalyzer . | . . . . Garrison Access Hacks . | . . . . Unauthorized Hacks 14 | . 12 . 2 Terminals 14 | . 12 . 2 Track 3 | . 3 . . Assimilate 2 | . 2 . . Botnet 6 | . 4 . 2 Disrupt 1 | . 1 . . Operators 2 | . 2 . . Fabricators . | . . . . Repair Stations . | . . . . Recycling Units . | . . . . Scanalyzers . | . . . . Garrison Access . | . . . . Data Cores Recovered . | . . . . Used . | . . . . Hacking Detections 9 | . 7 . 2 Full Trace Events 2 | . 1 . 1 Feedback Events . | . . . . Feedback Blocked . | . . . . Robot Schematics Acquired . | . . . . Robots Built . | . . . . Matter . | . . . . Time . | . . . . Total Robot Build Rating . | . . . . Part Schematics Acquired . | . . . . Parts Built . | . . . . Matter . | . . . . Time . | . . . . Total Part Build Rating . | . . . . Parts Repaired . | . . . . Time . | . . . . Parts Recycled . | . . . . Recycled Matter . | . . . . Retrieved Matter . | . . . . Retrieved Components 9 | . 9 . . Parts Scanalyzed . | . . . . Part Schematics Acquired . | . . . . Parts Damaged . | . . . . Bothacking | -11 -10 -10 -9 ------------ Run | Scr Mat Min Mat Used RIF Installer . | . . . . Robots Hacked . | . . . . Non-combat . | . . . . Combat . | . . . . Robot Hacks Applied . | . . . . Relay Couplers Released . | . . . . Robots Rewired . | . . . . Allies Hacked . | . . . . Hacks Repelled . | . . . . Allies | -11 -10 -10 -9 -------- Run | Scr Mat Min Mat Total Allies 6 | . 2 4 . Largest Group 4 | . 1 4 1 Highest-Rated Group 48 | . 10 48 31 Highest-Rated Ally 31 | . 10 31 31 Total Orders . | . . . . Ally Attacks 13 | . . 13 . Total Damage 164 | . . 164 . Kills 5 | . . 5 . Allies Corrupted . | . . . . Allies Melted . | . . . . Intel | -11 -10 -10 -9 ------- Run | Scr Mat Min Mat Robot Analysis Total 3 | . 3 . . Derelict Logs Recovered 1 | . . 1 . Drone Launches . | . . . . Drone Recoveries . | . . . . Exploration | -11 -10 -10 -9 ------------- Run | Scr Mat Min Mat Turns Passed 2430 | 33 1076 883 438 Spaces Moved 2019 | 34 774 920 291 Core 3 | 3 . . . Treads 114 | . 109 5 . Legs . | . . . . Wheels 1044 | 31 665 348 . Hover 858 | . . 567 291 Flight . | . . . . Fastest Speed 50 | 50 80 76 76 Average Speed 82 | 77 91 77 76 Slowest Speed 160 | 100 160 160 76 Overloaded Moves . | . . . . Propulsion Burnouts . | . . . . Robots Hopped . | . . . . Cave-ins Triggered 1 | . . 1 . Exploration Rate (%) 57 | 3 97 101 28 Regions Visited 3 Branch Regions 1 Pre-discovered Areas 1 | . . 1 . Known Exits Taken 2 | . 1 1 . Unknown Exits Taken 1 | 1 . . . Scrap Searched 3 | . . 3 . Spaces Dug 5 | . . 4 1 Terrain Destroyed 99 | . 17 81 1 Melee 1 | . . . 1 Projectile . | . . . . AOE 98 | . 17 81 . Actions | -11 -10 -10 -9 --------- Run | Scr Mat Min Mat Total 2473 | 39 985 1040 409 Wait 160 | . 71 49 40 Move 2016 | 33 773 919 291 Hop . | . . . . Pick Up 4 | . 2 1 1 Fast Attach 28 | 4 11 7 6 Attach . | . . . . Detach 1 | . . . 1 Swap 5 | 1 2 1 1 Drop 18 | 1 7 6 4 Fire 136 | . 98 31 7 Melee 44 | . . . 44 Ram . | . . . . Kick . | . . . . Crush 1 | . 1 . . Escape Stasis . | . . . . Rewire . | . . . . Trap . | . . . . Miscellaneous 60 | . 20 26 14 Route ------- -11/Scrapyard -10/Materials (discovered 5 exits: *Mat x3 / *Min x2) -10/Mines (discovered 2 exits: *Mat x2) -9/Materials (discovered 2 exits: [*Mat] / [Min]) History --------- Turn | Location | Event 20 | -11/Scrapyard | Discovered new exit (range 14) 21 | -11/Scrapyard | Upgraded with Propulsion slot (x1) 21 | -11/Scrapyard | Upgraded with Utility slot (x1) 34 | -11/Scrapyard | Entered Materials 217 | -10/Materials | Discovered new exit (range 12) 311 | -10/Materials | Build established: Mutant 420 | -10/Materials | Discovered new exit (range 14) 535 | -10/Materials | Upgraded with Weapon slot (x1) 600 | -10/Materials | Identified exit to Mines 626 | -10/Materials | Reached level 2 649 | -10/Materials | Discovered new exit (range 16) 673 | -10/Materials | Upgraded with Utility slot (x2) 677 | -10/Materials | Identified exit to Materials 1024 | -10/Materials | Discovered exit to Materials (range 9) 1110 | -10/Materials | Entered Mines 1110 | -10/Mines | Accompanied by 1 ally 1112 | -10/Mines | Reached level 3 1113 | -10/Mines | Met a Derelict bent on vengeance 1145 | -10/Mines | Upgraded with Utility slot (x1) 1208 | -10/Mines | Learned location of Zion (-6) 1246 | -10/Mines | Assisted by bots powering up and referring to "LRC-V3" 1380 | -10/Mines | Discovered exit to Materials (range 6) 1416 | -10/Mines | Assembled infested the area 1455 | -10/Mines | Core integrity fell below 50% 1462 | -10/Mines | Core integrity fell below 20% 1532 | -10/Mines | Crushed by falling debris 1733 | -10/Mines | Received a Mining Laser from a helpful Derelict 1782 | -10/Mines | Build established: Scavenger-Mutant 1958 | -10/Mines | Discovered exit to Materials (range 16) 1993 | -10/Mines | Entered Materials 1993 | -9/Materials | Accompanied by 1 ally 1994 | -9/Materials | Core integrity fell below 50% 1995 | -9/Materials | Reached level 4 2027 | -9/Materials | Upgraded with Weapon slot (x1) 2045 | -9/Materials | Discovered new exit (range 16) 2093 | -9/Materials | Core integrity fell below 20% 2193 | -9/Materials | Reached level 5 2268 | -9/Materials | Upgraded with Utility slot (x1) 2292 | -9/Materials | Discovered new exit (range 15) 2431 | -9/Materials | Destroyed by Y-45 Defender with Beam Rifle Last Messages --------------- 02316_ Lgt. Ion Engine fried. 02345_ K-01 Serf collects debris. 02366_ Connecting with Terminal... >>Trojan(Botnet) Trojan loaded successfully. Testing... Terminal linked with 1 system. Awaiting botnet instructions. >>Traps(Locate) Found 1 trap in 1 array: 1x Blade Trap Map updated. >>Prototypes Downloading prototype IDs... Adv. EMP Blaster Imp. VTOL Module 02376_ Atomic Centrifuge disabled. 02411_ Hvy. Hammer follow-up attack on Y-45 Defender. 02424_ Y-45 Defender suffers critical hit. 02424_ Destroyed Heat Sink. Map ----- +----------------------------------------------------+ | | | | | | | | | | | | | | | | | | | | | ###?######??????????????????? | | ##########?#?#??????????????? | | ###?#####?####??????????????? | | #########?#####?????????????? | | ####?###########????????????? | | ##################??????????? | | ### ##########?####?????????? | | # ######## ?????????? | | # """######?# ????????? | | # R"######## ????????? | | # """######## "????????? | | # ######## "????????? | | # ######## ""???????? | | # """ ######## ?"? ?#??? | | # "Y # ##### ????? | | # "@ # ##### # ??? | | #! + #########+##?# ? ? | | # # ######## ??????? | | ######### # + ######## | | ## T # # # # | | ## # # # # | | ##""" + + # # | | ##""" ^# # # # | | ##""" # # # # | | ## # ######## + | | ######### ######## # | | ## + ######## # | | ## # + | | ## !# ######## | | ## """ ###### ####+####### | | ## """ ###### # ## | | ## """ ###### + [ ## | | ??#######?#### # ## | | #?############ # """ """ ## | | ?#?########?## # """ """ ## | | ?#?#?#?####### # """ """ ## | | ?###?###?###?# # ## | | ?#?########### ## | | ?#?#####?##### ############# | | ###?#?###?#### ############# | +----------------------------------------------------+ Best States ------------- Heat Dissipation 49 Energy Generation 14 Energy Capacity 265 Matter Stores 300 Matter Capacity 300 Sight Range 16 Terrain Scan Range 16 Terrain Scan Density 410 Armor Coverage 225 Evasion (%) 49 Targeting Accuracy 6 Launcher Accuracy 20 Recoil Reduction 1 Offensive Hacking 10 Item Schematics ----------------- None Robot Schematics ------------------ None Fabricated ------------ Nothing Alien Tech Used ----------------- None Achievements -------------- None Challenges ------------ None RPGLIKE | -11 -10 -10 -9 --------- Run | Scr Mat Min Mat Levels Raised 4 | . 1 1 2 XP Earned 9465 | 3000 2775 1150 2540 XP Spent 8975 | 1000 2750 2200 3025 Upgrades 22 | 2 5 8 7 Propulsion Slot 1 | 1 . . . Utility Slot 5 | 1 2 1 1 Weapon Slot 2 | . 1 . 1 Core Integrity 7 | . . 6 1 Mass Support 1 | . 1 . . Inventory Capacity 2 | . 1 1 . Terrain Scan Density 4 | . . . 4 Protomatter Created 447 | . 222 119 106 Integrity Restored 1290 | . 417 555 318 Core 1212 | . 339 555 318 Parts 78 | . 78 . . Protomatter Decayed 255 | . 82 173 . Game ------ Seed BattleCryofiberMultirail Manual? 0 Play Time 00:35:40 Cumulative 181.6 hours Start 2020.04.14 @ 18:29:59 End 2020.04.14 @ 18:59:28 Sessions 1 Manual Loads 0 Difficulty Rogue Special Mode Winter2019/RPGLIKE Game No. 62 Rogue 62 Adventurer 0 Explorer 0 Win Type - Total 1 Types 1/0/0/0/0/0/0 Lore% 66 Gallery% 73 Achievement% 64 Wizard Run 0 Options --------- ASCII 1 Keyboard 1 Movement Numpad Keybinds 0 Fullscreen 1 Font 16/SmallcapsGlow Map View 75x55 Tactical HUD 1 Map Filters NONE Filters NONE Steam 1 RUN: c0fba245-6ca5-4773-b5c2-c60ab4abc0b4